fUSD/lending_fUSD_20260126
["ID","MTS","AMOUNT","RATE_DAILY","PERIOD"]
[403674840,1769465852696,-8880.53791268,0.00015716,2]
[403674841,1769465852808,-10000.01,0.00015716,2]
[403674842,1769465852934,-10000.01,0.00015716,2]
[403674843,1769465853049,-10000.01,0.00015716,2]
[403674844,1769465853169,-10000.01,0.00015716,2]
[403674845,1769465853297,-10000.01,0.00015716,2]
[403674846,1769465855081,-200.0,0.00015716,2]
[403674847,1769465855108,-200.0,0.00015716,2]
[403674848,1769465855499,-9200.01,0.00015716,2]
[403674849,1769465855517,-10000.01,0.00015716,2]
[403674850,1769465855607,-10000.01,0.00015716,2]
[403674851,1769465858192,-10000.01,0.00015716,2]
[403674852,1769465858306,-10000.01,0.00015716,2]
[403674853,1769465858419,-10000.01,0.00015716,2]
[403674854,1769465858573,-10000.01,0.00015716,2]
[403674855,1769465858654,-10000.01,0.00015716,2]
[403674856,1769465858780,-10000.01,0.00015716,2]
[403674857,1769465873057,152.110064,0.00015,2]
[403674858,1769465889594,-736.98090772,0.00015619,2]
[403674859,1769465915694,-53.63618189,0.00015619,2]
[403674860,1769465915726,-195.0,0.00015643,2]
[403674861,1769465915755,-1569.70620969,0.00015667,2]
[403674862,1769465915784,-600.0,0.00015667,2]
[403674863,1769465915814,-300.0,0.00015667,2]
[403674864,1769465915843,-600.0,0.00015697,2]
[403674865,1769465915872,-600.0,0.00015697,2]
[403674866,1769465915903,-300.0,0.00015697,2]
[403674867,1769465915932,-239.40375743,0.00015697,2]
[403674868,1769465915960,-147.21827363,0.00015715,5]
[403674869,1769465916085,-790.08115472,0.00015715,5]
[403674870,1769465916114,-300.0,0.00015715,2]
[403674871,1769465916147,-176.7226274,0.00015715,2]
[403674872,1769465916175,-951.90366667,0.00015716,2]
[403674873,1769465916203,-924.90801121,0.00015716,2]
[403674874,1769465916232,-216.85110539,0.00015716,2]
[403674875,1769465956046,218.72,2.872e-05,120]
[403674878,1769465978656,281.09274156,0.00015704,2]
[403674879,1769466001164,300.0,0.00015715,2]
[403674880,1769466001199,1200.0,0.00015715,2]
[403674881,1769466001235,300.0,0.00015715,2]
[403674882,1769466003543,281.0,0.00015716,2]
[403674883,1769466004877,318.3,0.00015706,2]
[403674884,1769466005124,318.3,0.00015706,2]
[403674885,1769466005422,181.0,0.00015716,2]
[403674886,1769466005658,99.38412766,0.00015706,2]
[403674887,1769466005685,218.91587234,0.00015706,2]
[403674888,1769466005912,318.3,0.00015706,2]
[403674889,1769466006410,318.3,0.00015706,2]
[403674890,1769466032848,500.0,0.00015715,2]
[403674891,1769466033078,500.0,0.00015715,2]
[403674892,1769466033337,500.0,0.00015715,2]
[403674893,1769466043300,166.33041979,0.00015715,2]
[403674894,1769466043335,500.0,0.00015715,2]
[403674895,1769466043365,500.0,0.00015715,2]
[403674896,1769466043400,500.0,0.00015715,2]
[403674897,1769466043429,647.68539864,0.00015715,2]
[403674898,1769466043459,505.17359471,0.00015715,2]
[403674899,1769466043491,500.0,0.00015715,2]
[403674900,1769466043746,500.0,0.00015715,2]
[403674901,1769466043783,500.0,0.00015715,2]
[403674902,1769466043821,500.0,0.00015715,2]
[403674903,1769466043866,357.66179752,0.00015715,2]
[403674904,1769466043896,607.81902121,0.00015715,2]
[403674905,1769466043931,354.53855264,0.00015715,2]
[403674906,1769466060250,500.0,0.00015715,2]
[403674908,1769466060538,500.0,0.00015715,2]
[403674910,1769466060782,500.0,0.00015715,2]
[403674913,1769466062498,5.28534315,0.00015715,2]
[403674914,1769466062521,294.71465685,0.00015715,2]
[403674915,1769466062916,300.0,0.00015715,2]
[403674916,1769466063087,300.0,0.00015715,2]
[403674928,1769466066927,500.0,0.00015715,2]
[403674929,1769466067187,500.0,0.00015715,2]
[403674930,1769466067423,500.0,0.00015715,2]
[403674931,1769466085636,224.0,0.00014405,2]
[403674932,1769466086367,224.0,0.00015013,2]
[403674933,1769466098188,1528.592,0.00015402,2]
[403674934,1769466098224,176.043,0.00015402,2]
[403674935,1769466121181,300.0,0.00015715,2]
[403674936,1769466125878,500.0,0.00015716,2]
[403674937,1769466149057,151.0,0.00015716,2]
[403674938,1769466149848,151.0,0.00015716,2]
[403674939,1769466152950,200.0,0.00015716,2]
[403674940,1769466153569,190.59259671,0.00015716,2]
[403674941,1769466163384,200.0,0.00015716,2]
[403674942,1769466186589,500.0,0.00015715,2]
[403674943,1769466186821,500.0,0.00015715,2]
[403674945,1769466228865,500.0,0.00014999,2]
[403674946,1769466231322,248.0097,0.00015616,2]
[403674947,1769466232210,601.02997992,0.00015715,2]
[403674948,1769466237648,1311.9163,0.00015616,2]
[403674949,1769466241226,99.11176652,0.00015715,2]
[403674950,1769466241260,200.88823348,0.00015715,2]
[403674951,1769466242573,300.0,0.00015715,2]
[403674952,1769466246222,500.0,0.00015715,2]
[403674953,1769466246471,500.0,0.00015715,2]
[403674954,1769466248717,500.0,0.00015715,2]
[403674955,1769466248966,188.89,0.00015715,2]
[403674956,1769466252704,500.0,0.00015715,2]
[403674957,1769466252982,500.0,0.00015715,2]
[403674958,1769466264535,996.69509802,0.00015618,2]
[403674959,1769466273766,500.0,0.00015715,2]
[403674960,1769466274012,500.00000017,0.00015715,2]
[403674961,1769466297224,500.0,0.00015715,2]
[403674962,1769466297463,500.0,0.00015715,2]
[403674963,1769466301193,300.0,0.00015715,2]
[403674964,1769466301301,221.0,0.00015715,2]
[403674965,1769466301402,1200.0,0.00015715,2]
[403674966,1769466329084,2092.53666833,0.00015618,2]
[403674967,1769466329110,4579.05298154,0.00015618,2]
[403674969,1769466361235,300.0,0.00015715,2]
[403674973,1769466375958,970.53658305,0.00015715,5]
[403674974,1769466388061,4150.42043541,0.00015616,2]
[403674975,1769466388352,3417.60606459,0.00015616,2]
[403674976,1769466402366,222.699606,0.00015715,2]
[403674977,1769466411529,500.0,0.00015715,2]
[403674978,1769466413940,500.0,0.00015715,2]
[403674979,1769466414289,370.88352756,0.00015715,2]
[403674980,1769466418948,158.65833628,0.00015715,2]
[403674981,1769466418982,500.0,0.00015715,2]
[403674982,1769466419030,522.42803223,0.00015715,2]
[403674983,1769466420748,500.0,0.00015715,2]
[403674984,1769466420781,582.48119027,0.00015715,2]
[403674985,1769466420815,500.0,0.00015715,2]
[403674986,1769466420856,500.0,0.00015715,2]
[403674987,1769466420922,402.3968211,0.00015715,2]
[403674988,1769466422757,300.0,0.00015715,2]
[403674989,1769466423225,300.0,0.00015715,2]
[403674990,1769466424527,500.0,0.00015715,2]
[403674991,1769466424624,222.85642197,0.00015715,2]
[403674994,1769466451177,-401.70310932,0.00015715,2]
[403674995,1769466451207,-500.0,0.00015715,2]
[403674996,1769466451237,-238.79765204,0.00015715,2]
[403674997,1769466451266,-234.20211347,0.00015715,2]
[403674998,1769466451301,-963.47216581,0.00015715,2]
[403674999,1769466451336,-963.47216581,0.00015715,2]
[403675000,1769466451370,-963.47216581,0.00015715,2]
[403675001,1769466451405,-506.29908967,0.00015715,2]
[403675002,1769466457334,-500.0,0.00015715,2]
[403675003,1769466457382,-457.17307614,0.00015715,2]
[403675004,1769466457433,-963.47216581,0.00015715,2]
[403675005,1769466457479,-963.47216581,0.00015715,2]
[403675006,1769466457536,-963.47216581,0.00015715,2]
[403675007,1769466457586,-963.47216581,0.00015715,2]
[403675014,1769466489801,10000.01,0.00015616,2]
[403675015,1769466489826,10000.01,0.00015616,2]
[403675016,1769466489855,10000.01,0.00015616,2]
[403675017,1769466489881,3257.4775,0.00015616,2]
[403675018,1769466495603,4316.7639,0.00015616,2]
[403675019,1769466504135,2425.7686,0.00015616,2]
[403675020,1769466504165,10000.01,0.00015616,2]
[403675021,1769466504194,10000.01,0.00015616,2]
[403675022,1769466504223,10000.01,0.00015616,2]
[403675023,1769466504253,10000.01,0.00015616,2]
[403675024,1769466504285,10000.01,0.00015616,2]
[403675025,1769466504316,10000.01,0.00015616,2]
[403675026,1769466505230,-300.0,0.00015616,2]
[403675027,1769466507327,-272.44638385,0.00015616,2]
[403675028,1769466511502,-200.40248045,0.00015616,2]
[403675029,1769466513989,-156.4379284,0.00015616,2]
[403675036,1769466519831,-264.01809355,0.00015616,2]
[403675037,1769466522572,-158.02750645,0.00015616,2]
[403675038,1769466525723,-185.90449884,0.00015616,2]
[403675039,1769466527244,-199.33802202,0.00015616,2]
[403675040,1769466529331,-298.92588499,0.00015616,2]
[403675041,1769466531182,214.50838484,0.00015614,2]
[403675042,1769466531419,-219.26717948,0.00015616,2]
[403675043,1769466533996,-174.98741262,0.00015616,2]
[403675044,1769466539470,-156.65161085,0.00015616,2]
[403675045,1769466541251,300.0,0.00015615,2]
[403675046,1769466542520,-460.92084937,0.00015616,2]
[403675047,1769466545732,-202.72394855,0.00015616,2]
[403675048,1769466546775,158.0,0.00015616,2]
[403675049,1769466548380,-183.1121574,0.00015616,2]
[403675050,1769466550015,426.97220514,0.00015615,2]
[403675051,1769466553155,-165.51566,0.00015616,2]
[403675052,1769466555343,-272.86586766,0.00015616,2]
[403675053,1769466557575,1077.07029,0.00015538,2]
[403675054,1769466557614,-154.73904412,0.00015616,2]
[403675055,1769466559546,-235.34687346,0.00015616,2]
[403675056,1769466562222,-245.63222381,0.00015616,2]
[403675065,1769466566360,-302.0,0.00015616,2]
[403675066,1769466568500,-168.45637445,0.00015616,2]
[403675067,1769466571774,-190.80711694,0.00015616,2]
[403675068,1769466575029,-153.61384336,0.00015616,2]
[403675069,1769466577708,-182.59317889,0.00015616,2]
[403675070,1769466581981,-296.67228426,0.00015616,2]
[403675071,1769466583604,-240.41329729,0.00015616,2]
[403675072,1769466585814,-220.40832684,0.00015616,2]
[403675073,1769466588528,-190.59259671,0.00015616,2]
[403675074,1769466590072,-247.856643,0.00015616,2]
[403675075,1769466593381,-224.63899196,0.00015616,2]
[403675076,1769466596049,-252.143357,0.00015616,2]
[403675077,1769466598259,-162.54389024,0.00015616,2]
[403675078,1769466599893,-180.14659574,0.00015616,2]
[403675079,1769466601163,300.0,0.00015615,2]
[403675080,1769466601197,300.0,0.00015615,2]
[403675081,1769466601382,1200.0,0.00015615,2]
[403675082,1769466601968,-332.29151069,0.00015616,2]
[403675083,1769466602909,300.0,0.00015615,2]
[403675084,1769466603463,-164.37935511,0.00015616,2]
[403675085,1769466603502,280.0,0.00015616,2]
[403675086,1769466605680,-250.0,0.00015616,2]
[403675087,1769466608359,-158.95571791,0.00015616,2]
[403675088,1769466608953,151.0,0.00015613,2]
[403675089,1769466612093,-197.75768554,0.00015616,2]
[403675090,1769466613695,-312.29967467,0.00015616,2]
[403675091,1769466614797,200.0,0.00015246,2]
[403675092,1769466615022,300.0,0.00015615,2]
[403675093,1769466615282,-192.55584767,0.00015616,2]
[403675094,1769466617213,-153.16050535,0.00015616,2]
[403675095,1769466619742,-226.2996218,0.00015616,2]
[403675096,1769466622383,-378.00494286,0.00015616,2]
[403675097,1769466624066,-331.82655358,0.00015616,2]
[403675098,1769466626380,-376.42432675,0.00015616,2]
[403675099,1769466630474,-189.36428936,0.00015616,2]
[403675109,1769466632533,-2519.10982703,0.00015616,2]
[403675111,1769466632545,-487.0242411,0.00015616,2]
[403675113,1769466632557,-330.74439359,0.00015616,2]
[403675115,1769466632575,-631.73537893,0.00015616,2]
[403675117,1769466632586,-2190.95070822,0.00015616,2]
[403675119,1769466632597,-506.0,0.00015616,2]
[403675121,1769466632608,-4655.84505265,0.00015616,2]
[403675122,1769466632619,-565.41868301,0.00015616,2]
[403675123,1769466632634,-272.85182406,0.00015616,2]
[403675125,1769466632645,-604.81359756,0.00015616,2]
[403675127,1769466632656,-351.765,0.00015616,2]
[403675129,1769466632668,-299.86,0.00015616,2]
[403675130,1769466632683,-1623.11679656,0.00015616,2]
[403675131,1769466632694,-7211.0,0.00015616,2]
[403675132,1769466632705,-10452.53889691,0.00015616,2]
[403675133,1769466632717,-315713.85342214,0.00015616,2]
[403675134,1769466632729,-7545.92046564,0.00015616,2]
[403675135,1769466632748,-9084.02818095,0.00015616,2]
[403675136,1769466632760,-3894.1177145,0.00015616,2]
[403675137,1769466633179,-184.95460979,0.00015616,2]
[403675138,1769466635701,-295.51238598,0.00015616,2]
[403675146,1769466638317,-101231.30453508,0.00015616,2]
[403675147,1769466638378,-432.46183533,0.00015616,2]
[403675148,1769466638390,-1298.58005086,0.00015616,2]
[403675149,1769466638401,-4740.45249689,0.00015616,2]
[403675151,1769466638647,-247.27605145,0.00015616,2]
[403675265,1769466640317,-449419.46509793,0.00015616,2]
[403675288,1769466640591,-7956.0078,0.00015616,2]
[403675289,1769466640606,-2500.0,0.00015616,2]
[403675290,1769466640616,-422.0456,0.00015616,2]
[403675291,1769466640627,-5157.9178,0.00015616,2]
[403675292,1769466640636,-500.0,0.00015715,2]
[403675293,1769466640645,-500.0,0.00015715,2]
[403675294,1769466640654,-500.0,0.00015715,2]
[403675295,1769466640664,-500.0,0.00015715,2]
[403675297,1769466640674,-500.0,0.00015715,2]
[403675298,1769466640684,-500.0,0.00015715,2]
[403675299,1769466640693,-283.95490059,0.00015715,2]
[403675300,1769466640704,-500.0,0.00015715,2]
[403675301,1769466640714,-500.0,0.00015715,2]
[403675302,1769466640723,-500.0,0.00015715,2]
[403675304,1769466640732,-500.0,0.00015715,2]
[403675306,1769466640742,-963.47216581,0.00015715,2]
[403675308,1769466640751,-963.47216581,0.00015715,2]
[403675310,1769466640760,-963.47216581,0.00015715,2]
[403675312,1769466640770,-963.47216581,0.00015715,2]
[403675313,1769466640779,-963.47216581,0.00015715,2]
[403675314,1769466640788,-963.47216581,0.00015715,2]
[403675315,1769466640798,-963.47216581,0.00015715,2]
[403675316,1769466640818,-963.47216581,0.00015715,2]
[403675317,1769466640827,-963.47216581,0.00015715,2]
[403675318,1769466640837,-963.47216581,0.00015715,2]
[403675319,1769466640846,-963.47216581,0.00015715,2]
[403675320,1769466640856,-963.47216581,0.00015715,2]
[403675321,1769466640865,-963.47216581,0.00015715,2]
[403675322,1769466640875,-963.47216581,0.00015715,2]
[403675323,1769466640884,-963.47216581,0.00015715,2]
[403675324,1769466640894,-963.47216581,0.00015715,2]
[403675325,1769466640904,-963.47216581,0.00015715,2]
[403675326,1769466640915,-963.47216581,0.00015715,2]
[403675327,1769466640925,-963.47216581,0.00015715,2]
[403675328,1769466640935,-963.47216581,0.00015715,2]
[403675329,1769466640945,-963.47216581,0.00015715,2]
[403675330,1769466640954,-963.47216581,0.00015715,2]
[403675331,1769466640964,-963.47216581,0.00015715,2]
[403675332,1769466640974,-963.47216581,0.00015715,2]
[403675333,1769466640983,-963.47216581,0.00015715,2]
[403675334,1769466640992,-963.47216581,0.00015715,2]
[403675335,1769466641002,-963.47216581,0.00015715,2]
[403675336,1769466641011,-963.47216581,0.00015715,2]
[403675337,1769466641020,-963.47216581,0.00015715,2]
[403675338,1769466641029,-963.47216581,0.00015715,2]
[403675339,1769466641039,-963.47216581,0.00015715,2]
[403675340,1769466641049,-963.47216581,0.00015715,2]
[403675341,1769466641058,-963.47216581,0.00015715,2]
[403675342,1769466641067,-963.47216581,0.00015715,2]
[403675343,1769466641076,-963.47216581,0.00015715,2]
[403675344,1769466641085,-963.47216581,0.00015715,2]
[403675345,1769466641094,-963.47216581,0.00015715,2]
[403675346,1769466641104,-963.47216581,0.00015715,2]
[403675347,1769466641119,-963.47216581,0.00015715,2]
[403675348,1769466641128,-963.47216581,0.00015715,2]
[403675349,1769466641137,-963.47216581,0.00015715,2]
[403675350,1769466641147,-963.47216581,0.00015715,2]
[403675351,1769466641156,-963.47216581,0.00015715,2]
[403675352,1769466641165,-963.47216581,0.00015715,2]
[403675353,1769466641174,-963.47216581,0.00015715,2]
[403675354,1769466641183,-963.47216581,0.00015715,2]
[403675355,1769466641192,-963.47216581,0.00015715,2]
[403675356,1769466641201,-963.47216581,0.00015715,2]
[403675357,1769466641211,-963.47216581,0.00015715,2]
[403675358,1769466641220,-963.47216581,0.00015715,2]
[403675359,1769466641229,-963.47216581,0.00015715,2]
[403675360,1769466641241,-963.47216581,0.00015715,2]
[403675361,1769466641250,-963.47216581,0.00015715,2]
[403675362,1769466641260,-183.85674038,0.00015715,2]
[403675363,1769466641269,-163.09240909,0.00015715,2]
[403675364,1769466641279,-963.47216582,0.00015715,2]
[403675365,1769466641288,-963.47216582,0.00015715,2]
[403675366,1769466641298,-963.47216582,0.00015715,2]
[403675367,1769466641307,-963.47216582,0.00015715,2]
[403675368,1769466641316,-963.47216582,0.00015715,2]
[403675369,1769466641326,-963.47216582,0.00015715,2]
[403675370,1769466641335,-963.47216582,0.00015715,2]
[403675371,1769466641344,-963.47216582,0.00015715,2]
[403675372,1769466641353,-963.47216582,0.00015715,2]
[403675373,1769466641362,-963.47216582,0.00015715,2]
[403675374,1769466641372,-963.47216582,0.00015715,2]
[403675375,1769466641380,-963.47216582,0.00015715,2]
[403675376,1769466641390,-963.47216582,0.00015715,2]
[403675377,1769466641399,-963.47216582,0.00015715,2]
[403675378,1769466641408,-963.47216582,0.00015715,2]
[403675379,1769466641417,-963.47216582,0.00015715,2]
[403675380,1769466641426,-963.47216582,0.00015715,2]
[403675381,1769466641435,-963.47216582,0.00015715,2]
[403675382,1769466641445,-963.47216582,0.00015715,2]
[403675383,1769466641454,-963.47216582,0.00015715,2]
[403675384,1769466641468,-963.47216582,0.00015715,2]
[403675385,1769466641478,-963.47216582,0.00015715,2]
[403675386,1769466641488,-963.47216582,0.00015715,2]
[403675387,1769466641499,-963.47216582,0.00015715,2]
[403675388,1769466641509,-963.47216582,0.00015715,2]
[403675389,1769466641518,-963.47216582,0.00015715,2]
[403675390,1769466641531,-500.0,0.00015715,2]
[403675391,1769466641540,-463.47216593,0.00015715,2]
[403675392,1769466641549,-2000.0,0.00015716,2]
[403675393,1769466641559,-200.0,0.00015716,2]
[403675394,1769466641568,-200.0,0.00015716,2]
[403675395,1769466641577,-500.0,0.00015716,2]
[403675396,1769466641586,-500.0,0.00015716,2]
[403675397,1769466641595,-500.0,0.00015716,2]
[403675398,1769466641605,-500.0,0.00015716,2]
[403675399,1769466641614,-500.0,0.00015716,2]
[403675400,1769466641623,-500.0,0.00015716,2]
[403675401,1769466641633,-500.0,0.00015716,2]
[403675402,1769466641642,-500.0,0.00015716,2]
[403675403,1769466641651,-151.0,0.00015716,2]
[403675404,1769466641661,-500.0,0.00015716,2]
[403675405,1769466641670,-151.0,0.00015716,2]
[403675406,1769466641680,-500.0,0.00015716,2]
[403675407,1769466641690,-151.0,0.00015716,2]
[403675408,1769466641699,-500.0,0.00015716,2]
[403675409,1769466641708,-151.0,0.00015716,2]
[403675410,1769466641717,-500.0,0.00015716,2]
[403675411,1769466641727,-151.0,0.00015716,2]
[403675412,1769466641736,-151.0,0.00015716,2]
[403675413,1769466641745,-151.0,0.00015716,2]
[403675414,1769466641754,-151.0,0.00015716,2]
[403675415,1769466641764,-151.0,0.00015716,2]
[403675416,1769466641772,-151.0,0.00015716,2]
[403675417,1769466641782,-500.0,0.00015716,2]
[403675418,1769466641791,-151.0,0.00015716,2]
[403675419,1769466641801,-500.0,0.00015716,2]
[403675420,1769466641810,-151.0,0.00015716,2]
[403675421,1769466641819,-500.0,0.00015716,2]
[403675422,1769466641828,-500.0,0.00015716,2]
[403675423,1769466641838,-500.0,0.00015716,2]
[403675424,1769466641847,-500.0,0.00015716,2]
[403675425,1769466641856,-500.0,0.00015716,2]
[403675426,1769466641866,-500.0,0.00015716,2]
[403675427,1769466641875,-500.0,0.00015716,2]
[403675428,1769466641884,-500.0,0.00015716,2]
[403675429,1769466641893,-500.0,0.00015716,2]
[403675430,1769466641902,-500.0,0.00015716,2]
[403675431,1769466641911,-200.0,0.00015716,2]
[403675432,1769466641920,-151.0,0.00015716,2]
[403675433,1769466641930,-200.0,0.00015716,2]
[403675434,1769466641939,-500.0,0.00015716,2]
[403675435,1769466641948,-150.0,0.00015716,2]
[403675436,1769466641957,-300.0,0.00015716,2]
[403675437,1769466641966,-250.0,0.00015716,2]
[403675438,1769466641975,-238.69085134,0.00015716,2]
[403675439,1769466641984,-195.0,0.00015717,2]
[403675440,1769466641993,-175.19283792,0.00015717,2]
[403675441,1769466642003,-1000.0,0.00015719,2]
[403675442,1769466642011,-151.0,0.00015748,2]
[403675443,1769466642021,-195.0,0.00015773,2]
[403675444,1769466642030,-500.0,0.00015818,2]
[403675445,1769466642039,-406.38026749,0.00015818,2]
[403675446,1769466642048,-500.0,0.00015818,2]
[403675447,1769466642057,-150.00030314,0.0001589,2]
[403675448,1769466642066,-500.0,0.000159,5]
[403675449,1769466642076,-198.49,0.00016,2]
[403675450,1769466642084,-198.49,0.00016,2]
[403675451,1769466642094,-548.23,0.00016,2]
[403675452,1769466642103,-150.0,0.00016,2]
[403675453,1769466642112,-1415.17684199,0.00016012,2]
[403675454,1769466642121,-184.676792,0.000161,2]
[403675455,1769466642130,-500.0,0.00016264,2]
[403675456,1769466642139,-200.0,0.000163,2]
[403675457,1769466642149,-643.0,0.00016342,2]
[403675458,1769466642159,-500.0,0.00016373,2]
[403675459,1769466642167,-254.97899767,0.00016373,2]
[403675460,1769466642177,-429.81,0.00016381,2]
[403675461,1769466642186,-1598.51,0.00016385,2]
[403675462,1769466642195,-673.0,0.0001639,2]
[403675463,1769466642205,-500.0,0.00016437,2]
[403675464,1769466642214,-319.52,0.00016438,2]
[403675465,1769466642223,-1000.0,0.00016438,2]
[403675466,1769466642231,-1000.00000001,0.00016438,2]
[403675467,1769466642240,-500.0,0.00016438,2]
[403675468,1769466642250,-300.0,0.00016438,2]
[403675469,1769466642259,-300.0,0.00016438,2]
[403675470,1769466642269,-1168.87260383,0.00016438,2]
[403675471,1769466642278,-1168.87260383,0.00016438,2]
[403675472,1769466642288,-1168.87260383,0.00016438,2]
[403675473,1769466642300,-1168.87260383,0.00016438,2]
[403675474,1769466642310,-1168.87260383,0.00016438,2]
[403675475,1769466642319,-1168.87260383,0.00016438,2]
[403675476,1769466642328,-1168.87260383,0.00016438,2]
[403675477,1769466642338,-1168.87260383,0.00016438,2]
[403675478,1769466642347,-1168.87260383,0.00016438,2]
[403675479,1769466642356,-1168.87260383,0.00016438,2]
[403675480,1769466642366,-1168.87260383,0.00016438,2]
[403675481,1769466642375,-1168.87260383,0.00016438,2]
[403675482,1769466642384,-1168.87260383,0.00016438,2]
[403675483,1769466642393,-1168.87260383,0.00016438,2]
[403675484,1769466642403,-1168.87260383,0.00016438,2]
[403675485,1769466642412,-1168.87260383,0.00016438,2]
[403675486,1769466642422,-1168.87260383,0.00016438,2]
[403675487,1769466642431,-1168.87260383,0.00016438,2]
[403675488,1769466642441,-1168.87260383,0.00016438,2]
[403675489,1769466642451,-1168.87260383,0.00016438,2]
[403675490,1769466642462,-1168.87260383,0.00016438,2]
[403675491,1769466642472,-1168.87260383,0.00016438,2]
[403675492,1769466642482,-1168.87260383,0.00016438,2]
[403675493,1769466642491,-1168.87260383,0.00016438,2]
[403675494,1769466642506,-1168.87260383,0.00016438,2]
[403675495,1769466642516,-1168.87260383,0.00016438,2]
[403675496,1769466642526,-1168.87260383,0.00016438,2]
[403675497,1769466642538,-1168.87260383,0.00016438,2]
[403675498,1769466642548,-1168.87260383,0.00016438,2]
[403675499,1769466642558,-1168.87260383,0.00016438,2]
[403675500,1769466642568,-1168.87260383,0.00016438,2]
[403675501,1769466642578,-1168.87260383,0.00016438,2]
[403675502,1769466642588,-1168.87260383,0.00016438,2]
[403675503,1769466642597,-1168.87260383,0.00016438,2]
[403675504,1769466642607,-1168.87260383,0.00016438,2]
[403675505,1769466642618,-1168.87260383,0.00016438,2]
[403675506,1769466642628,-1168.87260383,0.00016438,2]
[403675507,1769466642638,-1168.87260383,0.00016438,2]
[403675508,1769466642647,-1168.87260383,0.00016438,2]
[403675509,1769466642657,-1168.87260383,0.00016438,2]
[403675510,1769466642670,-1168.87260383,0.00016438,2]
[403675511,1769466642680,-1168.87260383,0.00016438,2]
[403675512,1769466642690,-1168.87260383,0.00016438,2]
[403675513,1769466642700,-1168.87260383,0.00016438,2]
[403675514,1769466642710,-1168.87260383,0.00016438,2]
[403675515,1769466642720,-1168.87260383,0.00016438,2]
[403675516,1769466642730,-1168.87260383,0.00016438,2]
[403675517,1769466642740,-1168.87260383,0.00016438,2]
[403675518,1769466642750,-1168.87260383,0.00016438,2]
[403675519,1769466642760,-1168.87260383,0.00016438,2]
[403675520,1769466642770,-1168.87260383,0.00016438,2]
[403675521,1769466643004,-1168.87260383,0.00016438,2]
[403675522,1769466643014,-1168.87260383,0.00016438,2]
[403675523,1769466643024,-1168.87260383,0.00016438,2]
[403675525,1769466643035,-1168.87260383,0.00016438,2]
[403675526,1769466643044,-1168.87260383,0.00016438,2]
[403675527,1769466643053,-1168.87260383,0.00016438,2]
[403675528,1769466643063,-1168.87260383,0.00016438,2]
[403675529,1769466643073,-1958.26100046,0.00016438,2]
[403675530,1769466643084,-1958.26100046,0.00016438,2]
[403675531,1769466643094,-1958.26100046,0.00016438,2]
[403675532,1769466643103,-1958.26100046,0.00016438,2]
[403675533,1769466643113,-1958.26100046,0.00016438,2]
[403675534,1769466643124,-1958.26100046,0.00016438,2]
[403675535,1769466643135,-1958.26100046,0.00016438,2]
[403675536,1769466643144,-1958.26100046,0.00016438,2]
[403675537,1769466643154,-1958.26100046,0.00016438,2]
[403675538,1769466643164,-1958.26100046,0.00016438,2]
[403675539,1769466643174,-1958.26100046,0.00016438,2]
[403675540,1769466643186,-1958.26100046,0.00016438,2]
[403675541,1769466643196,-1958.26100046,0.00016438,2]
[403675542,1769466643207,-1958.26100046,0.00016438,2]
[403675543,1769466643218,-1958.26100046,0.00016438,2]
[403675544,1769466643227,-1958.26100046,0.00016438,2]
[403675545,1769466643237,-1958.26100046,0.00016438,2]
[403675546,1769466643246,-1958.26100046,0.00016438,2]
[403675547,1769466643255,-1958.26100046,0.00016438,2]
[403675548,1769466643265,-1958.26100046,0.00016438,2]
[403675549,1769466643275,-1958.26100046,0.00016438,2]
[403675550,1769466643286,-1958.26100046,0.00016438,2]
[403675551,1769466643295,-1958.26100046,0.00016438,2]